fUSD/lending_fUSD_20240414
["ID","MTS","AMOUNT","RATE_DAILY","PERIOD"]
[322569960,1713075058099,-2128.82222416,0.00021,2]
[322569961,1713075059092,-1673.33792813,0.000209,3]
[322569962,1713075059115,-1326.66207187,0.00021,2]
[322569963,1713075059997,-3000.0,0.00021,2]
[322569964,1713075060703,-3000.0,0.00021,2]
[322569965,1713075061584,-3000.0,0.00021,2]
[322569966,1713075062312,-3000.0,0.00021,2]
[322569967,1713075063075,-3000.0,0.00021,2]
[322569968,1713075064435,-3000.0,0.00021,2]
[322569969,1713075065078,-3000.0,0.00021,2]
[322569970,1713075071954,-3000.0,0.00020999,2]
[322569971,1713075072463,-0.25935731,0.00020999,2]
[322569972,1713075072487,-610.33290565,0.00020999,2]
[322569973,1713075072510,-496.05069978,0.00020999,2]
[322569974,1713075072531,-500.0,0.00020999,2]
[322569975,1713075072555,-1393.35703726,0.00021,2]
[322569976,1713075073112,-3000.0,0.00021,2]
[322569977,1713075073885,-3000.0,0.00021,2]
[322569978,1713075075357,-3000.0,0.00021,2]
[322569979,1713075076253,-3000.0,0.00021,2]
[322569980,1713075076870,-3000.0,0.00021,2]
[322569981,1713075077485,-3000.0,0.00021,2]
[322569982,1713075078090,-3000.0,0.00021,2]
[322569983,1713075078693,-3000.0,0.00021,2]
[322569984,1713075100428,-1239.24531074,0.00020999,2]
[322569985,1713075100452,-1760.75468926,0.00021,2]
[322569986,1713075101113,-391.00398377,0.00020999,2]
[322569987,1713075101441,-2608.99601623,0.00021,2]
[322569988,1713075101815,-3000.0,0.00021,2]
[322569989,1713075102521,-3000.0,0.00021,2]
[322569990,1713075103262,-3000.0,0.00021,2]
[322569991,1713075104030,-3000.0,0.00021,2]
[322569992,1713075104702,-3000.0,0.00021,2]
[322569993,1713075105262,-3000.0,0.00021,2]
[322569994,1713075105879,-3000.0,0.00021,2]
[322569995,1713075106478,-3000.0,0.00021,2]
[322570008,1713075691178,414.71,0.00018636,2]
[322570009,1713075748639,5657.0,0.0003,30]
[322570010,1713075799219,2500.0,0.0003,30]
[322570011,1713075815469,2500.0,0.0003,30]
[322570012,1713075820341,-178.3,0.00020406,2]
[322570013,1713075820362,-149.7,0.00020419,2]
[322570014,1713075829555,2500.0,0.0003,30]
[322570015,1713075841104,2500.0,0.0003,30]
[322570016,1713075916218,473.09086858,0.00019853,2]
[322570017,1713075997872,29518.35905636,0.0003,30]
[322570018,1713076037321,288777.64094364,0.000282,120]
[322570019,1713076095805,1747.6,0.00019904,2]
[322570020,1713076170907,150.0,0.00019884,2]
[322570021,1713076182010,12313.39,0.00019884,2]
[322570022,1713076190005,1000.0,0.00019916,2]
[322570051,1713076233355,-283.18,0.00020059,2]
[322570052,1713076233365,-167.34,0.0002007,2]
[322570053,1713076233374,-362.01,0.00020271,2]
[322570054,1713076233384,-1409.3,0.00020275,2]
[322570055,1713076233393,-100.3,0.00020419,2]
[322570056,1713076233403,-2808.15070764,0.00020499,2]
[322570057,1713076233414,-161.47439017,0.00020536,2]
[322570058,1713076233424,-1007.55,0.00020548,2]
[322570059,1713076233436,-499.99,0.00020636,2]
[322570060,1713076233445,-493.78,0.0002064,2]
[322570061,1713076233455,-156.76,0.0002064,2]
[322570062,1713076233465,-2833.71,0.0002064,2]
[322570063,1713076233476,-2808.15070764,0.00020747,2]
[322570064,1713076233487,-178.3,0.0002076,2]
[322570065,1713076233497,-2546.39,0.0002079,2]
[322570066,1713076233507,-27691.3458,0.000208,2]
[322570067,1713076233517,-2901.71665097,0.000208,2]
[322570068,1713076234083,-449.79185229,0.000208,2]
[322570080,1713076238408,-823.86316167,0.000208,2]
[322570088,1713076239850,-3478.09793802,0.000208,2]
[322570089,1713076239864,-885.30001992,0.000208,2]
[322570090,1713076239878,-189.12687713,0.000208,2]
[322570091,1713076239889,-156.84675901,0.000208,2]
[322570092,1713076239899,-1475.3025066,0.000208,2]
[322570093,1713076239912,-1024.6974934,0.000208,2]
[322570095,1713076239924,-198.65723243,0.000208,2]
[322570097,1713076239934,-224.41578479,0.000208,2]
[322570099,1713076239944,-153.86533857,0.000208,2]
[322570101,1713076239954,-156.84675894,0.00020814,2]
[322570103,1713076239964,-153.86533857,0.00020825,2]
[322570104,1713076239974,-156.84675894,0.00020829,2]
[322570106,1713076239985,-156.84675894,0.00020843,2]
[322570107,1713076239996,-153.86533857,0.0002085,2]
[322570108,1713076240007,-156.84675894,0.00020857,2]
[322570110,1713076240017,-156.84675894,0.00020871,2]
[322570111,1713076240027,-153.86533857,0.00020874,2]
[322570112,1713076240037,-156.84675894,0.00020886,2]
[322570114,1713076240047,-1600.2432,0.00020898,2]
[322570115,1713076240056,-161.47439017,0.00020899,2]
[322570116,1713076240066,-5000.0,0.000209,2]
[322570118,1713076240075,-245000.0,0.000209,2]
[322570120,1713076240085,-272.24,0.000209,2]
[322570121,1713076240095,-156.84675894,0.000209,2]
[322570122,1713076240105,-224.41578479,0.000209,2]
[322570124,1713076240114,-151.05671038,0.000209,2]
[322570126,1713076240124,-2573.46057082,0.000209,2]
[322570127,1713076240134,-414.71,0.000209,2]
[322570129,1713076240143,-500141.31520689,0.0002099,2]
[322570130,1713076240153,-642.58013102,0.00020999,2]
[322570132,1713076240163,-585.09983492,0.00020999,2]
[322570134,1713076240172,-9382499.53409163,0.00021,2]
[322570136,1713076240186,-8755499.29132888,0.00021,2]
[322570137,1713076240196,-1430.30975011,0.00021,2]
[322570139,1713076240206,-610.58536035,0.00021,2]
[322570140,1713076240215,-848.56,0.00021,2]
[322570142,1713076240225,-680.12,0.00021,2]
[322570145,1713076240234,-1536547.65374056,0.00021,2]
[322570147,1713076240245,-1665266.5560905,0.00021,2]
[322570148,1713076240255,-200.0,0.00021,2]
[322570150,1713076240266,-1175.58479218,0.00021,2]
[322570152,1713076240277,-1644.79632,0.00021,2]
[322570153,1713076240288,-178.3,0.00021114,2]
[322570155,1713076240297,-2808.15070764,0.00021161,2]
[322570156,1713076240306,-319.32389597,0.00021191,2]
[322570157,1713076240316,-155.54,0.00021231,2]
[322570159,1713076240327,-180.64,0.00021314,2]
[322570160,1713076240336,-212.894919,0.0002137,2]
[322570162,1713076240345,-2910.0,0.000214,2]
[322570164,1713076240356,-1252.0,0.000214,2]
[322570165,1713076240366,-178.3,0.00021469,2]
[322570167,1713076240375,-250.0,0.00021918,2]
[322570169,1713076240385,-152.76,0.00021918,2]
[322570170,1713076240394,-250.0,0.00021918,2]
[322570172,1713076240404,-1644.79633,0.0002193,2]
[322570173,1713076240413,-784.24043551,0.00022,2]
[322570175,1713076240422,-667.62468409,0.00022,2]
[322570177,1713076240432,-667.62468409,0.00022,2]
[322570178,1713076240441,-667.62468409,0.00022,2]
[322570180,1713076240451,-667.62468409,0.00022,2]
[322570182,1713076240460,-667.62468409,0.00022,2]
[322570183,1713076240470,-667.62468409,0.00022,2]
[322570185,1713076240480,-667.62468409,0.00022,2]
[322570187,1713076240490,-667.62468409,0.00022,2]
[322570188,1713076240500,-667.62468409,0.00022,2]
[322570190,1713076240510,-667.62468409,0.00022,2]
[322570192,1713076240519,-667.62468409,0.00022,2]
[322570193,1713076240529,-667.62468409,0.00022,2]
[322570195,1713076240539,-667.62468409,0.00022,2]
[322570197,1713076240549,-667.62468409,0.00022,2]
[322570198,1713076240559,-667.62468409,0.00022,2]
[322570200,1713076240569,-667.62468409,0.00022,2]
[322570201,1713076240579,-667.62468409,0.00022,2]
[322570203,1713076240589,-667.62468409,0.00022,2]
[322570205,1713076240599,-667.62468409,0.00022,2]
[322570206,1713076240608,-667.62468409,0.00022,2]
[322570208,1713076240618,-667.62468409,0.00022,2]
[322570210,1713076240627,-667.62468409,0.00022,2]
[322570211,1713076240637,-667.62468409,0.00022,2]
[322570213,1713076240647,-667.62468409,0.00022,2]
[322570215,1713076240657,-667.62468409,0.00022,2]
[322570217,1713076240666,-667.62468409,0.00022,2]
[322570218,1713076240675,-667.62468409,0.00022,2]
[322570220,1713076240684,-667.62468409,0.00022,2]
[322570222,1713076240694,-667.62468409,0.00022,2]
[322570223,1713076240703,-667.62468409,0.00022,2]
[322570225,1713076240712,-667.62468409,0.00022,2]
[322570226,1713076240721,-667.62468409,0.00022,2]
[322570227,1713076240731,-667.62468409,0.00022,2]
[322570228,1713076240740,-667.62468409,0.00022,2]
[322570229,1713076240749,-667.62468409,0.00022,2]
[322570230,1713076240758,-667.62468409,0.00022,2]
[322570231,1713076240767,-667.62468409,0.00022,2]
[322570232,1713076240776,-667.62468409,0.00022,2]
[322570233,1713076240786,-667.62468409,0.00022,2]
[322570234,1713076240795,-667.62468409,0.00022,2]
[322570235,1713076240805,-667.62468409,0.00022,2]
[322570236,1713076240815,-667.62468409,0.00022,2]
[322570238,1713076240825,-667.62468409,0.00022,2]
[322570240,1713076240835,-667.62468409,0.00022,2]
[322570242,1713076240844,-155.54,0.00022073,2]
[322570244,1713076240854,-212.894919,0.00022192,2]
[322570246,1713076240864,-1000.0,0.00022406,2]
[322570248,1713076240874,-163.114,0.00022626,2]
[322570250,1713076240885,-163.114,0.00022635,2]
[322570252,1713076240895,-1747.6,0.00022643,2]
[322570254,1713076240905,-163.114,0.00022644,2]
[322570256,1713076240914,-163.114,0.00022653,2]
[322570258,1713076240924,-163.114,0.00022662,2]
[322570260,1713076240934,-163.114,0.00022672,2]
[322570262,1713076240943,-180.64,0.00022684,2]
[322570264,1713076240952,-155.54,0.00022914,2]
[322570266,1713076240962,-320.0,0.00023,10]
[322570268,1713076240971,-550.0,0.00023,3]
[322570270,1713076240980,-212.894919,0.00023014,2]
[322570272,1713076240990,-908.17,0.00023082,2]
[322570274,1713076241000,-412.35,0.00023082,2]
[322570276,1713076241009,-412.35,0.00023082,2]
[322570278,1713076241018,-908.17,0.00023082,2]
[322570280,1713076241028,-412.35,0.00023082,2]
[322570282,1713076241037,-908.17,0.00023082,2]
[322570284,1713076241047,-412.35,0.00023082,2]
[322570286,1713076241057,-908.17,0.00023082,2]
[322570288,1713076241067,-412.35,0.00023082,2]
[322570290,1713076241076,-908.17,0.00023082,2]
[322570293,1713076241086,-908.17,0.00023082,2]
[322570295,1713076241096,-412.35,0.00023082,2]
[322570297,1713076241106,-908.17,0.00023082,2]
[322570299,1713076241115,-412.35,0.00023082,2]
[322570301,1713076241124,-412.35,0.00023082,2]
[322570303,1713076241135,-908.17,0.00023082,2]
[322570305,1713076241144,-412.35,0.00023082,2]
[322570307,1713076241153,-908.17,0.00023082,2]
[322570309,1713076241163,-908.17,0.00023082,2]
[322570311,1713076241172,-412.35,0.00023082,2]
[322570313,1713076241181,-908.17,0.00023082,2]
[322570315,1713076241190,-908.17,0.00023082,2]
[322570317,1713076241201,-908.17,0.00023082,2]
[322570319,1713076241210,-908.17,0.00023082,2]
[322570321,1713076241220,-908.17,0.00023082,2]
[322570323,1713076241228,-414.71,0.00023164,2]
[322570325,1713076241237,-1644.79633,0.0002318,2]
[322570327,1713076241247,-1000.0,0.00023288,2]
[322570329,1713076241256,-1000.0,0.00023288,2]
[322570331,1713076241266,-1000.0,0.00023288,2]
[322570333,1713076241278,-1000.0,0.00023288,2]
[322570335,1713076241288,-1000.0,0.00023288,2]
[322570337,1713076241297,-1000.0,0.00023288,2]
[322570339,1713076241307,-765.0,0.00023288,2]
[322570341,1713076241316,-152.05,0.00023356,2]
[322570342,1713076241326,-155.55,0.00023356,2]
[322570344,1713076241335,-150.0,0.00023356,2]
[322570347,1713076241345,-324.94,0.00023356,2]
[322570349,1713076241355,-150.0,0.00023356,2]
[322570350,1713076241364,-150.0,0.00023356,2]
[322570352,1713076241373,-150.0,0.00023356,2]
[322570354,1713076241383,-150.0,0.00023356,2]
[322570356,1713076241394,-150.0,0.00023356,2]
[322570358,1713076241403,-150.0,0.00023356,2]
[322570361,1713076241413,-150.06,0.00023356,2]
[322570363,1713076241423,-4741.23088761,0.000235,2]
[322570365,1713076241433,-167.11,0.00023525,2]
[322570366,1713076241442,-155.54,0.00023755,2]
[322570368,1713076241451,-212.894919,0.00023836,2]
[322570370,1713076241461,-150.0,0.00023856,2]
[322570373,1713076241470,-300.0,0.00023856,2]
[322570375,1713076241480,-1288.0,0.000239,2]
[322570377,1713076241489,-10000.0,0.0002402,2]
[322570379,1713076241498,-908.17,0.00024041,2]
[322570380,1713076241508,-162.16,0.00024138,2]
[322570383,1713076241517,-1644.79633,0.0002444,2]
[322570385,1713076241526,-212.894919,0.00024658,2]
[322570387,1713076241536,-1998.95566924,0.000248,2]
[322570389,1713076241545,-1000.0,0.00024895,2]
[322570391,1713076241554,-1399.65881744,0.00025,2]
[322570393,1713076241563,-563.08685838,0.00025,2]
[322570395,1713076241572,-323787.0,0.00025,2]
[322570397,1713076241581,-155.0,0.00025,2]
[322570399,1713076241592,-173.8791187,0.00025,2]
[322570401,1713076241601,-2605.45039561,0.00025,2]
[322570403,1713076241611,-155.0,0.00025,2]
[322570405,1713076241620,-600.0,0.00025,3]
[322570407,1713076241629,-167.11,0.00025189,2]
[322570409,1713076241639,-1747.6,0.00025383,2]
[322570411,1713076241648,-414.71,0.00025428,2]
[322570413,1713076241658,-212.894919,0.00025479,2]
[322570415,1713076241668,-17651.0,0.000255,3]
[322570417,1713076241677,-150.177,0.00025548,2]
[322570419,1713076241687,-807.0,0.00025548,2]
[322570421,1713076241696,-292.138,0.00025548,2]
[322570423,1713076241706,-615.403,0.00025548,2]
[322570425,1713076241715,-436.0,0.00025548,2]
[322570427,1713076241723,-1948.0,0.00025548,2]
[322570429,1713076241732,-1140.0,0.00025548,2]
[322570431,1713076241741,-411.009,0.00025548,2]
[322570433,1713076241750,-293.532,0.00025548,2]
[322570435,1713076241760,-1472.0,0.00025548,2]
[322570437,1713076241769,-3043.0,0.00025548,2]
[322570439,1713076241778,-2440.0,0.00025548,2]
[322570441,1713076241788,-1646.464,0.00025548,2]
[322570443,1713076241796,-203.751,0.00025548,2]
[322570445,1713076241805,-253.584,0.00025548,2]
[322570447,1713076241815,-443.186,0.00025548,2]
[322570449,1713076241825,-399.52,0.00025548,2]
[322570472,1713076242078,-226.0,0.00025548,2]
[322570474,1713076242089,-4803.0,0.00025548,2]
[322570476,1713076242099,-2291.0,0.00025548,2]
[322570478,1713076242109,-1391.0,0.00025548,2]
[322570480,1713076242118,-5719.0,0.00025548,2]
[322570482,1713076242127,-968.0,0.00025548,2]
[322570484,1713076242136,-2466.0,0.00025548,2]
[322570486,1713076242145,-37623.0,0.00025548,2]
[322570488,1713076242154,-1377.673,0.00025548,2]
[322570490,1713076242163,-461.0,0.00025548,2]
[322570492,1713076242174,-1644.79633,0.0002568,2]
[322570494,1713076242183,-17651.0,0.00026,5]
[322570496,1713076242192,-212.894919,0.00026301,2]
[322570498,1713076242202,-10919.40620375,0.000265,2]
[322570500,1713076242211,-167.0,0.0002653,2]
[322570502,1713076242221,-167.11,0.00026853,2]
[322570504,1713076242230,-1644.79633,0.0002694,2]
[322570506,1713076242242,-650.0,0.00027,3]
[322570508,1713076242251,-212.894919,0.00027123,2]
[322570510,1713076242259,-1000.0,0.00027385,2]
[322570512,1713076242268,-263.44133956,0.00027397,2]
[322570514,1713076242280,-153.85,0.00027397,2]
[322570516,1713076242288,-151.91,0.00027397,2]
[322570518,1713076242297,-7933.2,0.00027397,15]
[322570520,1713076242306,-281.05,0.00027397,2]
[322570522,1713076242316,-2096.78,0.000274,2]
[322570524,1713076242326,-2096.78,0.000274,2]
[322570526,1713076242335,-2096.78,0.000274,2]
[322570528,1713076242344,-2096.78,0.000274,2]
[322570530,1713076242353,-2096.78,0.000274,2]
[322570532,1713076242364,-167.0,0.00027406,2]
[322570534,1713076242374,-557.17,0.00027482,2]
[322570536,1713076242382,-908.17,0.00027482,2]
[322570538,1713076242391,-414.71,0.00027692,2]
[322570540,1713076242401,-150.0,0.00027756,2]
[322570542,1713076242410,-521.03,0.00027756,2]
[322570544,1713076242419,-265.86,0.00027756,2]
[322570546,1713076242428,-150.0,0.00027756,2]
[322570548,1713076242437,-150.0,0.00027756,2]
[322570550,1713076242446,-794.43,0.00027756,2]
[322570552,1713076242455,-166.66,0.00027756,2]
[322570554,1713076242464,-150.0,0.00027756,2]
[322570556,1713076242473,-150.0,0.00027756,2]
[322570558,1713076242482,-212.894919,0.00027945,14]
[322570560,1713076242492,-20189.0893382,0.00028,2]
[322570562,1713076242501,-283.18,0.00028083,2]
[322570564,1713076242511,-155.0,0.000282,2]
[322570566,1713076242520,-167.0,0.00028282,2]
[322570568,1713076242528,-167.11,0.00028517,2]
[322570570,1713076242537,-608.0,0.00028548,2]
[322570572,1713076242546,-436.0,0.00028548,2]
[322570574,1713076242554,-810.541,0.00028548,2]
[322570575,1713076242563,-962.991,0.00028548,2]
[322570577,1713076242572,-307.665,0.00028548,2]
[322570579,1713076242581,-443.0,0.00028548,2]
[322570581,1713076242590,-355.0,0.00028548,2]
[322570583,1713076242599,-214.0,0.00028548,2]
[322570585,1713076242608,-4803.0,0.00028548,2]
[322570588,1713076242617,-5719.0,0.00028548,2]
[322570589,1713076242627,-2466.0,0.00028548,2]
[322570591,1713076242639,-7653.098,0.00028548,2]
[322570594,1713076242649,-37527.0,0.00028657,2]
[322570596,1713076242658,-600.0,0.00028659,2]
[322570598,1713076242668,-500.0,0.00028659,2]
[322570599,1713076242677,-500.0,0.00028659,2]
[322570602,1713076242686,-900.0,0.00028659,2]
[322570603,1713076242696,-157.041515,0.00028748,8]
[322570606,1713076242706,-212.894919,0.00028767,14]
[322570607,1713076242715,-157.041515,0.00028948,9]
[322570610,1713076242725,-500000.0,0.00029,2]
[322570612,1713076242734,-562.05444632,0.00029,2]
[322570614,1713076242745,-6750.20773336,0.00029,2]
[322570616,1713076242755,-848.56,0.00029,2]
[322570618,1713076242764,-680.12,0.00029,2]
[322570619,1713076242773,-700.0,0.00029,3]
[322570621,1713076242783,-150.91,0.00029,2]
[322570623,1713076242792,-150.91,0.00029,2]
[322570626,1713076242802,-150.91,0.00029,2]
[322570628,1713076242811,-150.91,0.00029,2]
[322570630,1713076242822,-150.91,0.00029,2]
[322570632,1713076242831,-150.91,0.00029,2]
[322570633,1713076242841,-150.91,0.00029,2]
[322570635,1713076242851,-150.91,0.00029,2]
[322570637,1713076242860,-150.91,0.00029,2]
[322570639,1713076242869,-150.91,0.00029,2]
[322570641,1713076242879,-150.91,0.00029,2]
[322570643,1713076242888,-150.91,0.00029,2]
[322570645,1713076242897,-150.91,0.00029,2]
[322570647,1713076242906,-150.91,0.00029,2]
[322570650,1713076242915,-150.91,0.00029,2]
[322570652,1713076242925,-150.91,0.00029,2]
[322570654,1713076242934,-150.91,0.00029,2]
[322570655,1713076242943,-150.91,0.00029,2]
[322570657,1713076242952,-62.65245057,0.00029,2]
[322570660,1713076242967,-88.25754943,0.00029,2]
[322570662,1713076242976,-150.91,0.00029,2]
[322570664,1713076242986,-150.91,0.00029,2]
[322570666,1713076242995,-16.79405525,0.00029,2]
[322570793,1713076244005,-626.59166763,0.00025548,2]
[322570798,1713076244017,-427.40833237,0.00025548,2]
[322570802,1713076244027,-406.343,0.00028548,2]
[322570805,1713076244036,-134.11594475,0.00029,2]
[322570806,1713076244046,-150.91,0.00029,2]
[322570807,1713076244056,-150.91,0.00029,2]
[322570808,1713076244065,-150.91,0.00029,2]
[322570809,1713076244074,-150.91,0.00029,2]
[322570811,1713076244083,-150.91,0.00029,2]
[322570813,1713076244093,-150.91,0.00029,2]
[322570816,1713076244102,-150.91,0.00029,2]
[322570819,1713076244111,-150.91,0.00029,2]
[322570821,1713076244120,-150.91,0.00029,2]
[322570824,1713076244129,-150.91,0.00029,2]
[322570827,1713076244138,-150.91,0.00029,2]
[322570830,1713076244148,-150.91,0.00029,2]
[322570833,1713076244156,-150.91,0.00029,2]
[322570836,1713076244165,-150.91,0.00029,2]
[322570839,1713076244175,-150.91,0.00029,2]
[322570842,1713076244184,-150.91,0.00029,2]
[322570875,1713076244443,-150.91,0.00029,2]
[322570877,1713076244454,-157.041515,0.00029148,9]
[322570879,1713076244463,-167.0,0.00029158,2]
[322570882,1713076244473,-600.0,0.00029207,2]
[322570883,1713076244482,-900.0,0.00029207,2]
[322570886,1713076244491,-157.041515,0.00029348,10]
[322570888,1713076244502,-1095.97286738,0.00029399,2]
[322570890,1713076244514,-52.4616777,0.00029399,2]
[322570892,1713076244523,-1069.77962094,0.000294,2]
[322570894,1713076244532,-1007.47956768,0.000294,2]
[322570896,1713076244541,-150.0,0.000294,2]
[322570898,1713076244551,-1068.43960482,0.000294,2]
[322570900,1713076244560,-442.25500705,0.000295,3]
[322570902,1713076244569,-157.041515,0.00029548,9]
[322570904,1713076244579,-150.0,0.00029727,2]
[322570906,1713076244588,-150.0,0.0002973,2]
[322570908,1713076244597,-150.0,0.00029733,2]
[322570910,1713076244606,-150.0,0.00029735,2]
[322570912,1713076244615,-150.0,0.00029743,2]
[322570914,1713076244626,-150.0,0.00029744,2]
[322570916,1713076244635,-157.041515,0.00029748,8]
[322570918,1713076244648,-150.0,0.00029748,2]
[322570920,1713076244658,-150.0,0.00029748,2]
[322570922,1713076244667,-150.0,0.00029749,2]
[322570924,1713076244676,-900.0,0.00029755,2]
[322570926,1713076244686,-150.0,0.00029755,2]
[322570928,1713076244695,-500.0,0.00029755,2]
[322570930,1713076244705,-500.0,0.00029755,2]
[322570932,1713076244715,-150.0,0.00029757,2]
[322570933,1713076244724,-150.0,0.00029759,2]
[322570935,1713076244733,-150.0,0.0002976,2]
[322570937,1713076244742,-150.0,0.00029761,2]
[322570939,1713076244752,-150.0,0.00029761,2]
[322570941,1713076244761,-150.0,0.00029765,2]
[322570942,1713076244771,-150.0,0.00029765,2]
[322570944,1713076244780,-150.0,0.00029767,2]
[322570946,1713076244789,-150.0,0.00029769,2]
[322570948,1713076244798,-150.0,0.0002977,2]
[322570950,1713076244807,-150.0,0.0002977,2]
[322570952,1713076244818,-150.0,0.00029771,2]
[322570954,1713076244828,-150.0,0.00029775,2]
[322570956,1713076244837,-150.0,0.00029775,2]
[322570958,1713076244848,-150.0,0.00029783,2]
[322570959,1713076244861,-150.0,0.0002979,2]
[322570961,1713076244870,-150.0,0.00029793,2]
[322570963,1713076244879,-148.42907644,0.00029798,2]
[322570969,1713076244931,-1.57092356,0.00029798,2]
[322570971,1713076244940,-150.0,0.00029809,2]
[322570973,1713076244950,-150.0,0.00029809,2]
[322570975,1713076244960,-150.0,0.0002981,2]
[322570977,1713076244970,-150.0,0.00029812,2]
[322570979,1713076244979,-150.0,0.00029818,2]
[322570981,1713076244989,-150.0,0.00029818,2]
[322570983,1713076245000,-150.0,0.0002982,2]
[322570985,1713076245009,-150.0,0.00029825,2]
[322570986,1713076245018,-150.0,0.00029838,2]
[322570987,1713076245027,-150.0,0.0002984,2]
[322570988,1713076245035,-150.0,0.00029847,2]
[322570989,1713076245044,-150.0,0.00029851,2]
[322570990,1713076245054,-150.0,0.00029856,2]
[322570991,1713076245063,-51.35472435,0.00029863,2]
[322570992,1713076245075,-98.64527565,0.00029863,2]
[322570993,1713076245084,-150.0,0.00029866,2]
[322570994,1713076245094,-150.0,0.00029866,2]
[322570996,1713076245103,-150.0,0.00029869,2]
[322570998,1713076245112,-150.0,0.00029874,2]
[322571000,1713076245121,-1000.0,0.00029874,2]
[322571002,1713076245130,-150.0,0.00029877,2]
[322571004,1713076245140,-150.0,0.00029884,2]
[322571006,1713076245149,-150.0,0.00029889,2]
[322571008,1713076245158,-150.0,0.0002989,2]
[322571010,1713076245167,-150.0,0.00029892,2]
[322571012,1713076245176,-150.0,0.00029892,2]
[322571014,1713076245186,-150.0,0.00029895,2]
[322571016,1713076245195,-150.0,0.00029897,2]
[322571018,1713076245205,-150.0,0.00029899,2]
[322571020,1713076245214,-150.0,0.000299,2]
[322571022,1713076245224,-150.0,0.00029901,2]
[322571024,1713076245234,-300.0,0.00029903,2]
[322571026,1713076245243,-150.0,0.00029905,2]
[322571028,1713076245254,-150.0,0.00029908,2]
[322571030,1713076245265,-150.0,0.00029915,2]
[322571032,1713076245277,-150.0,0.00029917,2]
[322571034,1713076245287,-150.0,0.00029921,2]
[322571036,1713076245296,-150.0,0.00029922,2]
[322571038,1713076245305,-150.0,0.00029923,2]
[322571040,1713076245315,-150.0,0.00029923,2]
[322571042,1713076245325,-150.0,0.00029927,2]
[322571044,1713076245335,-150.0,0.0002993,2]
[322571046,1713076245344,-150.0,0.00029932,2]
[322571048,1713076245354,-150.0,0.00029938,2]
[322571050,1713076245364,-150.0,0.00029938,2]
[322571052,1713076245373,-150.0,0.0002994,2]
[322571054,1713076245383,-150.0,0.00029945,2]
[322571056,1713076245392,-157.041515,0.00029948,9]
[322571058,1713076245401,-150.0,0.00029949,2]
[322571060,1713076245411,-150.0,0.0002995,2]
[322571062,1713076245420,-150.0,0.00029953,2]
[322571064,1713076245431,-414.71,0.00029956,2]
[322571066,1713076245440,-150.0,0.00029957,2]
[322571068,1713076245450,-150.0,0.00029957,2]
[322571070,1713076245460,-150.0,0.00029958,2]
[322571072,1713076245469,-150.0,0.00029959,2]
[322571074,1713076245479,-150.0,0.00029959,2]
[322571076,1713076245488,-150.0,0.00029963,2]
[322571078,1713076245500,-150.0,0.00029963,2]
[322571080,1713076245509,-150.0,0.00029963,2]
[322571081,1713076245518,-150.0,0.00029963,2]